[Event "Titled Tuesday Blitz November 01 Early 2022"]
[White "Jiganchine, Roman"]
[Black "Gulevich, Artem"]
[WhiteFideId "2603667"]
[BlackFideId "24119580"]
[WhiteElo "2314"]
[BlackElo "2218"]
[Result "0-1"]
[Round "02"]
[TimeControl "180+1"]
[Date "2022.11.02"]
[WhiteClock "0:00:10"]
[BlackClock "0:00:30"]

1. Nf3 {[%clk 0:00:40]}  Nf6 {[%clk 0:02:58]} 2. c4 {[%clk 0:00:38]}  c6 {[%clk 0:02:58]} 3. Nc3 {[%clk 0:00:38]}  d5 {[%clk 0:02:58]} 4. e3 {[%clk 0:00:38]}  e6 {[%clk 0:02:58]} 5. b3 {[%clk 0:00:37]}  b6 {[%clk 0:02:57]} 6. Bb2 {[%clk 0:00:38]}  Bb7 {[%clk 0:02:57]} 7. d4 {[%clk 0:00:38]}  Nbd7 {[%clk 0:02:57]} 8. Bd3 {[%clk 0:00:39]}  Be7 {[%clk 0:02:55]} 9. O-O {[%clk 0:00:39]}  O-O {[%clk 0:02:55]} 10. Qe2 {[%clk 0:00:39]}  c5 {[%clk 0:02:54]} 11. Rfd1 {[%clk 0:00:37]}  Rc8 {[%clk 0:02:49]} 12. Rac1 {[%clk 0:00:37]}  cxd4 {[%clk 0:02:35]} 13. exd4 {[%clk 0:00:38]}  Re8 {[%clk 0:02:28]} 14. Ne5 {[%clk 0:00:38]}  dxc4 {[%clk 0:02:14]} 15. bxc4 {[%clk 0:00:37]}  Nxe5 {[%clk 0:02:05]} 16. dxe5 {[%clk 0:00:38]}  Nd7 {[%clk 0:02:05]} 17. Bxh7+ {[%clk 0:00:34]}  Kxh7 {[%clk 0:02:05]} 18. Qh5+ {[%clk 0:00:34]}  Kg8 {[%clk 0:02:05]} 19. Rd3 {[%clk 0:00:34]}  g6 {[%clk 0:01:52]} 20. Rg3 {[%clk 0:00:34]}  Bf8 {[%clk 0:01:42]} 21. Nb5 {[%clk 0:00:30]}  Bg7 {[%clk 0:01:30]} 22. Qg4 {[%clk 0:00:30]}  Nxe5 {[%clk 0:01:23]} 23. Qf4 {[%clk 0:00:25]}  Nd3 {[%clk 0:01:20]} 24. Rxd3 {[%clk 0:00:21]}  Qxd3 {[%clk 0:01:19]} 25. Bxg7 {[%clk 0:00:20]}  Kxg7 {[%clk 0:01:18]} 26. Nd6 {[%clk 0:00:20]}  Re7 {[%clk 0:01:04]} 27. Nxc8 {[%clk 0:00:17]}  Bxc8 {[%clk 0:01:05]} 28. Qe5+ {[%clk 0:00:17]}  Kg8 {[%clk 0:00:58]} 29. Qf6 {[%clk 0:00:15]}  Rd7 {[%clk 0:00:54]} 30. h4 {[%clk 0:00:14]}  Bb7 {[%clk 0:00:51]} 31. h5 {[%clk 0:00:14]}  Qf5 {[%clk 0:00:51]} 32. Qc3 {[%clk 0:00:11]}  Qxh5 {[%clk 0:00:49]} 33. c5 {[%clk 0:00:10]}  Qxc5 {[%clk 0:00:36]} 34. Qb2 {[%clk 0:00:10]}  Qd5 {[%clk 0:00:36]} 35. f3 {[%clk 0:00:10]}  Qd4+ {[%clk 0:00:32]} 36. Qxd4 {[%clk 0:00:10]}  Rxd4 {[%clk 0:00:33]} 37. Rc7 {[%clk 0:00:10]}  Bd5 {[%clk 0:00:32]} 38. Rxa7 {[%clk 0:00:10]}  Rd1+ {[%clk 0:00:30]} 39. Kf2 {[%clk 0:00:10]}  Rd2+ {[%clk 0:00:30]} 40. Ke3 {[%clk 0:00:10]}  Rxa2 {[%clk 0:00:30]} 0-1


[Site "https://www.chess.com"]

[Event "Titled Tuesday Blitz November 01 Early 2022"]
[White "Jones, Gawain C B"]
[Black "Manukyan, Sargis A."]
[WhiteFideId "409561"]
[BlackFideId "13303970"]
[WhiteElo "2872"]
[BlackElo "2597"]
[Result "1-0"]
[Round "02"]
[TimeControl "180+1"]
[Date "2022.11.02"]
[WhiteClock "0:00:06"]
[BlackClock "0:00:05"]

1. Nf3 {[%clk 0:03:00]}  d5 {[%clk 0:02:59]} 2. g3 {[%clk 0:02:59]}  Nf6 {[%clk 0:03:00]} 3. Bg2 {[%clk 0:02:59]}  Bf5 {[%clk 0:03:01]} 4. c4 {[%clk 0:02:58]}  e6 {[%clk 0:03:00]} 5. Qb3 {[%clk 0:02:58]}  Qc8 {[%clk 0:02:59]} 6. Nc3 {[%clk 0:02:56]}  c6 {[%clk 0:02:51]} 7. Nh4 {[%clk 0:02:54]}  Bg4 {[%clk 0:02:44]} 8. h3 {[%clk 0:02:52]}  Bh5 {[%clk 0:02:44]} 9. g4 {[%clk 0:02:52]}  Bg6 {[%clk 0:02:45]} 10. d3 {[%clk 0:02:47]}  Nbd7 {[%clk 0:02:44]} 11. cxd5 {[%clk 0:02:45]}  exd5 {[%clk 0:02:43]} 12. f4 {[%clk 0:02:33]}  Nc5 {[%clk 0:02:30]} 13. Qc2 {[%clk 0:02:31]}  Bd6 {[%clk 0:02:27]} 14. e4 {[%clk 0:02:14]}  dxe4 {[%clk 0:02:16]} 15. dxe4 {[%clk 0:02:14]}  O-O {[%clk 0:02:03]} 16. Nxg6 {[%clk 0:02:13]}  hxg6 {[%clk 0:02:02]} 17. e5 {[%clk 0:02:13]}  Nxg4 {[%clk 0:01:42]} 18. hxg4 {[%clk 0:02:12]}  Qxg4 {[%clk 0:01:43]} 19. exd6 {[%clk 0:02:03]}  Rfe8+ {[%clk 0:01:44]} 20. Kf2 {[%clk 0:02:00]}  Rad8 {[%clk 0:01:41]} 21. Qd1 {[%clk 0:01:44]}  Qe6 {[%clk 0:01:36]} 22. Bh3 {[%clk 0:01:27]}  Qf6 {[%clk 0:01:35]} 23. d7 {[%clk 0:01:24]}  Re7 {[%clk 0:01:21]} 24. Kg2 {[%clk 0:00:57]}  Nxd7 {[%clk 0:01:13]} 25. Re1 {[%clk 0:00:57]}  Nf8 {[%clk 0:01:05]} 26. Qxd8 {[%clk 0:00:52]}  Re2+ {[%clk 0:01:04]} 27. Rxe2 {[%clk 0:00:52]}  Qxd8 {[%clk 0:01:05]} 28. Be3 {[%clk 0:00:51]}  b6 {[%clk 0:00:54]} 29. Rd1 {[%clk 0:00:49]}  Qf6 {[%clk 0:00:54]} 30. Ne4 {[%clk 0:00:42]}  Qh4 {[%clk 0:00:49]} 31. Ng5 {[%clk 0:00:36]}  f6 {[%clk 0:00:42]} 32. Nf3 {[%clk 0:00:27]}  Qh5 {[%clk 0:00:40]} 33. Rd8 {[%clk 0:00:27]}  Kf7 {[%clk 0:00:35]} 34. Bf2 {[%clk 0:00:25]}  g5 {[%clk 0:00:30]} 35. fxg5 {[%clk 0:00:22]}  fxg5 {[%clk 0:00:22]} 36. Ne5+ {[%clk 0:00:20]}  Ke7 {[%clk 0:00:21]} 37. Nxc6+ {[%clk 0:00:18]}  Kf7 {[%clk 0:00:21]} 38. Ne5+ {[%clk 0:00:18]}  Ke7 {[%clk 0:00:21]} 39. Bg4 {[%clk 0:00:18]}  Qh6 {[%clk 0:00:19]} 40. Bg3 {[%clk 0:00:11]}  Ne6 {[%clk 0:00:04]} 41. Nc6+ {[%clk 0:00:09]}  Kf7 {[%clk 0:00:05]} 42. Rxe6 {[%clk 0:00:07]}  Qh7 {[%clk 0:00:05]} 43. Ne5# {[%clk 0:00:06]} 1-0


[Site "https://www.chess.com"]

[Event "Titled Tuesday Blitz November 01 Early 2022"]
[White "Kakabayev, Mergen"]
[Black "Faizrakhmanov, Ramil"]
[WhiteFideId "14002990"]
[BlackFideId "24103209"]
[WhiteElo "2302"]
[BlackElo "2421"]
[Result "0-1"]
[Round "02"]
[TimeControl "180+1"]
[Date "2022.11.02"]
[WhiteClock "0:01:35"]
[BlackClock "0:00:35"]

1. e4 {[%clk 0:03:00]}  c6 {[%clk 0:02:58]} 2. d4 {[%clk 0:03:00]}  d5 {[%clk 0:02:59]} 3. e5 {[%clk 0:03:01]}  Bf5 {[%clk 0:02:58]} 4. h4 {[%clk 0:03:00]}  h5 {[%clk 0:02:59]} 5. Bd3 {[%clk 0:03:00]}  Bxd3 {[%clk 0:02:59]} 6. Qxd3 {[%clk 0:03:01]}  Qa5+ {[%clk 0:02:59]} 7. Nd2 {[%clk 0:03:01]}  e6 {[%clk 0:03:00]} 8. Nf3 {[%clk 0:02:59]}  Nh6 {[%clk 0:03:00]} 9. O-O {[%clk 0:02:59]}  Nf5 {[%clk 0:03:00]} 10. c4 {[%clk 0:02:59]}  Nd7 {[%clk 0:02:58]} 11. b4 {[%clk 0:02:50]}  Bxb4 {[%clk 0:02:54]} 12. Rb1 {[%clk 0:02:50]}  O-O {[%clk 0:02:48]} 13. a3 {[%clk 0:02:48]}  Bxd2 {[%clk 0:02:47]} 14. Bxd2 {[%clk 0:02:48]}  Qa6 {[%clk 0:02:47]} 15. Rfc1 {[%clk 0:02:46]}  Nb6 {[%clk 0:02:45]} 16. Ng5 {[%clk 0:02:45]}  Nxc4 {[%clk 0:02:38]} 17. f3 {[%clk 0:02:44]}  Qxa3 {[%clk 0:02:24]} 18. Rb3 {[%clk 0:02:43]}  Qa6 {[%clk 0:02:13]} 19. g4 {[%clk 0:02:40]}  Nxd2 {[%clk 0:01:50]} 20. Qxd2 {[%clk 0:02:39]}  Nxh4 {[%clk 0:01:28]} 21. Qh2 {[%clk 0:02:34]}  Qa4 {[%clk 0:01:23]} 22. Qxh4 {[%clk 0:02:23]}  Qxb3 {[%clk 0:01:18]} 23. Qxh5 {[%clk 0:02:22]}  Qd3 {[%clk 0:01:18]} 24. Kg2 {[%clk 0:02:20]}  f6 {[%clk 0:01:05]} 25. exf6 {[%clk 0:01:54]}  gxf6 {[%clk 0:00:44]} 26. Rh1 {[%clk 0:01:52]}  fxg5 {[%clk 0:00:38]} 27. Qh8+ {[%clk 0:01:46]}  Kf7 {[%clk 0:00:38]} 28. Rh7+ {[%clk 0:01:46]}  Ke8 {[%clk 0:00:38]} 29. Qg7 {[%clk 0:01:35]}  Qxf3+ {[%clk 0:00:37]} 30. Kg1 {[%clk 0:01:35]}  Qf1+ {[%clk 0:00:35]} 0-1


[Site "https://www.chess.com"]

[Event "Titled Tuesday Blitz November 01 Early 2022"]
[White "Kamsky, Gata"]
[Black "Sourath Biswas"]
[WhiteFideId "2000024"]
[BlackFideId "35091484"]
[WhiteElo "2666"]
[BlackElo "2164"]
[Result "1-0"]
[Round "02"]
[TimeControl "180+1"]
[Date "2022.11.01"]
[WhiteClock "0:01:02"]
[BlackClock "0:00:12"]

1. d4 {[%clk 0:03:00]}  Nf6 {[%clk 0:02:59]} 2. Nf3 {[%clk 0:02:31]}  g6 {[%clk 0:02:53]} 3. c3 {[%clk 0:02:19]}  Bg7 {[%clk 0:02:52]} 4. Bg5 {[%clk 0:02:04]}  O-O {[%clk 0:02:49]} 5. Nbd2 {[%clk 0:02:00]}  d5 {[%clk 0:02:48]} 6. e3 {[%clk 0:01:59]}  c5 {[%clk 0:02:44]} 7. Be2 {[%clk 0:01:57]}  Qb6 {[%clk 0:02:29]} 8. Qb3 {[%clk 0:01:53]}  Nc6 {[%clk 0:02:24]} 9. O-O {[%clk 0:01:50]}  c4 {[%clk 0:02:08]} 10. Qa3 {[%clk 0:01:47]}  Qc7 {[%clk 0:01:45]} 11. b3 {[%clk 0:01:35]}  b5 {[%clk 0:01:44]} 12. Bxf6 {[%clk 0:01:35]}  Bxf6 {[%clk 0:01:44]} 13. Qc5 {[%clk 0:01:35]}  Be6 {[%clk 0:01:30]} 14. Qxb5 {[%clk 0:01:32]}  Rfb8 {[%clk 0:00:51]} 15. Qc5 {[%clk 0:01:20]}  cxb3 {[%clk 0:00:44]} 16. axb3 {[%clk 0:01:17]}  Rc8 {[%clk 0:00:41]} 17. Ba6 {[%clk 0:01:14]}  Rd8 {[%clk 0:00:38]} 18. b4 {[%clk 0:01:08]}  Qd7 {[%clk 0:00:12]} 19. Bb5 {[%clk 0:01:03]}  Rdc8 {[%clk 0:00:12]} 20. Ra6 {[%clk 0:01:02]} 1-0


[Site "https://www.chess.com"]

[Event "Titled Tuesday Blitz November 01 Early 2022"]
[White "Khalakhan, Jurij"]
[Black "Maranhao,Jose Renato Ruiz"]
[WhiteFideId "14142368"]
[BlackFideId "2135175"]
[WhiteElo "2208"]
[BlackElo "1970"]
[Result "1-0"]
[Round "02"]
[TimeControl "180+1"]
[Date "2022.11.02"]
[WhiteClock "0:01:24"]
[BlackClock "0:00:01"]

1. e4 {[%clk 0:03:00]}  b6 {[%clk 0:03:00]} 2. d4 {[%clk 0:03:00]}  Bb7 {[%clk 0:03:01]} 3. Bd3 {[%clk 0:03:01]}  g6 {[%clk 0:03:01]} 4. Nf3 {[%clk 0:02:57]}  Bg7 {[%clk 0:03:02]} 5. O-O {[%clk 0:02:55]}  d6 {[%clk 0:03:01]} 6. c4 {[%clk 0:02:52]}  Nd7 {[%clk 0:03:01]} 7. Nc3 {[%clk 0:02:49]}  e6 {[%clk 0:03:01]} 8. Re1 {[%clk 0:02:39]}  Ne7 {[%clk 0:03:01]} 9. Bg5 {[%clk 0:02:39]}  h6 {[%clk 0:03:01]} 10. Be3 {[%clk 0:02:39]}  O-O {[%clk 0:02:50]} 11. Qd2 {[%clk 0:02:39]}  Kh7 {[%clk 0:02:50]} 12. Rad1 {[%clk 0:02:36]}  f5 {[%clk 0:02:45]} 13. Nh4 {[%clk 0:02:03]}  Nc6 {[%clk 0:01:17]} 14. Nf3 {[%clk 0:01:52]}  Nb4 {[%clk 0:01:04]} 15. Bb1 {[%clk 0:01:47]}  a5 {[%clk 0:00:25]} 16. a3 {[%clk 0:01:46]}  Na6 {[%clk 0:00:25]} 17. h4 {[%clk 0:01:38]}  fxe4 {[%clk 0:00:20]} 18. Bxe4 {[%clk 0:01:36]}  Bxe4 {[%clk 0:00:19]} 19. Nxe4 {[%clk 0:01:37]}  Rxf3 {[%clk 0:00:20]} 20. gxf3 {[%clk 0:01:36]}  Qxh4 {[%clk 0:00:20]} 21. Kg2 {[%clk 0:01:31]}  Rf8 {[%clk 0:00:14]} 22. Rh1 {[%clk 0:01:31]}  Qe7 {[%clk 0:00:05]} 23. Bxh6 {[%clk 0:01:30]}  Nf6 {[%clk 0:00:01]} 24. Nxf6+ {[%clk 0:01:24]}  Qxf6 {[%clk 0:00:01]} 25. Bg5+ {[%clk 0:01:24]} 1-0


[Site "https://www.chess.com"]

[Event "Titled Tuesday Blitz November 01 Early 2022"]
[White "Kirillov, Dmitry"]
[Black "Ivic, Velimir"]
[WhiteFideId "34180572"]
[BlackFideId "950122"]
[WhiteElo "2095"]
[BlackElo "2625"]
[Result "0-1"]
[Round "02"]
[TimeControl "180+1"]
[Date "2022.11.02"]
[WhiteClock "0:01:20"]
[BlackClock "0:02:12"]

1. e4 {[%clk 0:02:56]}  e5 {[%clk 0:03:00]} 2. Nf3 {[%clk 0:02:55]}  Nc6 {[%clk 0:03:00]} 3. Bc4 {[%clk 0:02:55]}  Bc5 {[%clk 0:03:00]} 4. d3 {[%clk 0:02:51]}  Nf6 {[%clk 0:03:00]} 5. O-O {[%clk 0:02:52]}  O-O {[%clk 0:03:00]} 6. c3 {[%clk 0:02:53]}  d6 {[%clk 0:02:59]} 7. Nbd2 {[%clk 0:02:53]}  a5 {[%clk 0:02:57]} 8. Bb3 {[%clk 0:02:49]}  Re8 {[%clk 0:02:56]} 9. h3 {[%clk 0:02:49]}  h6 {[%clk 0:02:56]} 10. Re1 {[%clk 0:02:45]}  Be6 {[%clk 0:02:56]} 11. Bc2 {[%clk 0:02:46]}  d5 {[%clk 0:02:56]} 12. exd5 {[%clk 0:02:47]}  Qxd5 {[%clk 0:02:56]} 13. Ne4 {[%clk 0:02:47]}  Nxe4 {[%clk 0:02:55]} 14. dxe4 {[%clk 0:02:47]}  Qxd1 {[%clk 0:02:54]} 15. Rxd1 {[%clk 0:02:48]}  Red8 {[%clk 0:02:50]} 16. Be3 {[%clk 0:02:37]}  Bxe3 {[%clk 0:02:50]} 17. fxe3 {[%clk 0:02:38]}  f6 {[%clk 0:02:48]} 18. a4 {[%clk 0:02:29]}  Kf8 {[%clk 0:02:43]} 19. Kf2 {[%clk 0:02:04]}  Rxd1 {[%clk 0:02:42]} 20. Rxd1 {[%clk 0:02:05]}  Rd8 {[%clk 0:02:42]} 21. Rxd8+ {[%clk 0:01:56]}  Nxd8 {[%clk 0:02:43]} 22. Nd2 {[%clk 0:01:57]}  b6 {[%clk 0:02:42]} 23. b4 {[%clk 0:01:54]}  Nc6 {[%clk 0:02:40]} 24. b5 {[%clk 0:01:55]}  Nd8 {[%clk 0:02:37]} 25. Bb3 {[%clk 0:01:53]}  Ke7 {[%clk 0:02:37]} 26. Ke2 {[%clk 0:01:52]}  Nb7 {[%clk 0:02:36]} 27. Bxe6 {[%clk 0:01:46]}  Kxe6 {[%clk 0:02:36]} 28. Nb3 {[%clk 0:01:46]}  Kd6 {[%clk 0:02:37]} 29. Kd3 {[%clk 0:01:45]}  Nc5+ {[%clk 0:02:34]} 30. Nxc5 {[%clk 0:01:34]}  Kxc5 {[%clk 0:02:35]} 31. g4 {[%clk 0:01:34]}  c6 {[%clk 0:02:25]} 32. bxc6 {[%clk 0:01:32]}  Kxc6 {[%clk 0:02:26]} 33. Kc4 {[%clk 0:01:32]}  g5 {[%clk 0:02:18]} 34. Kb3 {[%clk 0:01:24]}  b5 {[%clk 0:02:18]} 35. Ka3 {[%clk 0:01:19]}  Kc5 {[%clk 0:02:16]} 36. Kb3 {[%clk 0:01:19]}  bxa4+ {[%clk 0:02:11]} 37. Kxa4 {[%clk 0:01:20]}  Kc4 {[%clk 0:02:12]} 0-1


[Site "https://www.chess.com"]

[Event "Titled Tuesday Blitz November 01 Early 2022"]
[White "Kis, Lorand Bela"]
[Black "Namitbir Singh Walia"]
[WhiteFideId "2024098"]
[BlackFideId "35071068"]
[WhiteElo "2085"]
[BlackElo "2239"]
[Result "0-1"]
[Round "02"]
[TimeControl "180+1"]
[Date "2022.11.02"]
[WhiteClock "0:00:10"]
[BlackClock "0:00:27"]

1. d4 {[%clk 0:03:00]}  Nf6 {[%clk 0:02:58]} 2. c4 {[%clk 0:02:59]}  c5 {[%clk 0:02:58]} 3. d5 {[%clk 0:02:58]}  d6 {[%clk 0:02:54]} 4. Nc3 {[%clk 0:02:58]}  g6 {[%clk 0:02:52]} 5. e4 {[%clk 0:02:58]}  Bg7 {[%clk 0:02:52]} 6. h3 {[%clk 0:02:58]}  e5 {[%clk 0:02:48]} 7. g3 {[%clk 0:02:30]}  O-O {[%clk 0:02:48]} 8. Bg2 {[%clk 0:02:31]}  h6 {[%clk 0:02:32]} 9. Nge2 {[%clk 0:02:08]}  Nh5 {[%clk 0:02:26]} 10. g4 {[%clk 0:01:48]}  Nf6 {[%clk 0:02:25]} 11. Be3 {[%clk 0:01:44]}  Kh7 {[%clk 0:02:25]} 12. f3 {[%clk 0:01:38]}  a6 {[%clk 0:02:19]} 13. h4 {[%clk 0:01:38]}  b5 {[%clk 0:02:00]} 14. cxb5 {[%clk 0:01:19]}  axb5 {[%clk 0:02:01]} 15. Nxb5 {[%clk 0:01:19]}  Qb6 {[%clk 0:02:00]} 16. Nbc3 {[%clk 0:01:05]}  Qxb2 {[%clk 0:01:41]} 17. h5 {[%clk 0:00:39]}  g5 {[%clk 0:01:39]} 18. Rb1 {[%clk 0:00:30]}  Qa3 {[%clk 0:01:38]} 19. Nb5 {[%clk 0:00:20]}  Qa5+ {[%clk 0:01:33]} 20. Bd2 {[%clk 0:00:19]}  Qd8 {[%clk 0:01:28]} 21. Nec3 {[%clk 0:00:19]}  Na6 {[%clk 0:01:26]} 22. O-O {[%clk 0:00:17]}  Nc7 {[%clk 0:01:22]} 23. a4 {[%clk 0:00:14]}  Qd7 {[%clk 0:01:11]} 24. Qc2 {[%clk 0:00:13]}  Ba6 {[%clk 0:01:10]} 25. Rfc1 {[%clk 0:00:13]}  Rfb8 {[%clk 0:01:09]} 26. Kf2 {[%clk 0:00:13]}  Nfe8 {[%clk 0:01:10]} 27. Kg3 {[%clk 0:00:13]}  Bf6 {[%clk 0:01:09]} 28. Bf1 {[%clk 0:00:13]}  Bd8 {[%clk 0:01:07]} 29. Nxc7 {[%clk 0:00:13]}  Nxc7 {[%clk 0:00:58]} 30. Bxa6 {[%clk 0:00:13]}  Nxa6 {[%clk 0:00:58]} 31. Nb5 {[%clk 0:00:13]}  Nc7 {[%clk 0:00:53]} 32. Qc4 {[%clk 0:00:12]}  Nxb5 {[%clk 0:00:41]} 33. Rxb5 {[%clk 0:00:10]}  Rxb5 {[%clk 0:00:27]} 34. a5 {[%clk 0:00:10]} 0-1


[Site "https://www.chess.com"]

[Event "Titled Tuesday Blitz November 01 Early 2022"]
[White "Kodinets, Konstantin L."]
[Black "Ohanyan, Emin"]
[WhiteFideId "4122011"]
[BlackFideId "13312022"]
[WhiteElo "2447"]
[BlackElo "2302"]
[Result "1/2-1/2"]
[Round "02"]
[TimeControl "180+1"]
[Date "2022.11.02"]
[WhiteClock "0:00:08"]
[BlackClock "0:00:05"]

1. d4 {[%clk 0:02:58]}  d5 {[%clk 0:02:59]} 2. Nf3 {[%clk 0:02:58]}  Nf6 {[%clk 0:02:59]} 3. Bf4 {[%clk 0:02:59]}  c6 {[%clk 0:02:57]} 4. Nbd2 {[%clk 0:02:58]}  Bf5 {[%clk 0:02:56]} 5. c4 {[%clk 0:02:58]}  e6 {[%clk 0:02:56]} 6. Qb3 {[%clk 0:02:59]}  Qb6 {[%clk 0:02:56]} 7. c5 {[%clk 0:03:00]}  Qxb3 {[%clk 0:02:56]} 8. axb3 {[%clk 0:03:01]}  Na6 {[%clk 0:02:56]} 9. Rxa6 {[%clk 0:03:01]}  bxa6 {[%clk 0:02:55]} 10. e3 {[%clk 0:03:01]}  Nd7 {[%clk 0:02:36]} 11. Bxa6 {[%clk 0:02:59]}  Rb8 {[%clk 0:02:36]} 12. Bxb8 {[%clk 0:02:56]}  Nxb8 {[%clk 0:02:37]} 13. Be2 {[%clk 0:02:52]}  Kd8 {[%clk 0:02:21]} 14. O-O {[%clk 0:02:36]}  Kc7 {[%clk 0:02:21]} 15. Ra1 {[%clk 0:02:34]}  Kb7 {[%clk 0:02:21]} 16. b4 {[%clk 0:02:32]}  a6 {[%clk 0:02:14]} 17. Nb3 {[%clk 0:02:25]}  Be7 {[%clk 0:02:06]} 18. Na5+ {[%clk 0:02:23]}  Kc7 {[%clk 0:02:06]} 19. Ne5 {[%clk 0:02:22]}  f6 {[%clk 0:02:06]} 20. Nexc6 {[%clk 0:02:04]}  Nxc6 {[%clk 0:01:53]} 21. Nxc6 {[%clk 0:02:05]}  Kxc6 {[%clk 0:01:52]} 22. Rxa6+ {[%clk 0:02:05]}  Kb7 {[%clk 0:01:35]} 23. b5 {[%clk 0:02:05]}  e5 {[%clk 0:01:10]} 24. g4 {[%clk 0:01:43]}  Bc8 {[%clk 0:01:03]} 25. b6 {[%clk 0:01:34]}  Bd8 {[%clk 0:00:45]} 26. Ra7+ {[%clk 0:01:22]}  Kb8 {[%clk 0:00:45]} 27. Bb5 {[%clk 0:00:57]}  Bxb6 {[%clk 0:00:16]} 28. cxb6 {[%clk 0:00:52]}  Bb7 {[%clk 0:00:17]} 29. Ba6 {[%clk 0:00:40]}  Bxa6 {[%clk 0:00:16]} 30. Rxa6 {[%clk 0:00:41]}  exd4 {[%clk 0:00:16]} 31. exd4 {[%clk 0:00:39]}  Re8 {[%clk 0:00:17]} 32. Ra7 {[%clk 0:00:31]}  g5 {[%clk 0:00:15]} 33. Rd7 {[%clk 0:00:17]}  Re4 {[%clk 0:00:15]} 34. Rxd5 {[%clk 0:00:17]}  Rxg4+ {[%clk 0:00:15]} 35. Kf1 {[%clk 0:00:18]}  Kb7 {[%clk 0:00:14]} 36. Rd6 {[%clk 0:00:18]}  Rf4 {[%clk 0:00:12]} 37. Kg2 {[%clk 0:00:18]}  h5 {[%clk 0:00:11]} 38. h3 {[%clk 0:00:18]}  h4 {[%clk 0:00:10]} 39. b4 {[%clk 0:00:17]}  f5 {[%clk 0:00:10]} 40. b5 {[%clk 0:00:16]}  g4 {[%clk 0:00:11]} 41. d5 {[%clk 0:00:12]}  Rf3 {[%clk 0:00:10]} 42. hxg4 {[%clk 0:00:12]}  fxg4 {[%clk 0:00:11]} 43. Rh6 {[%clk 0:00:11]}  h3+ {[%clk 0:00:11]} 44. Kg1 {[%clk 0:00:11]}  Rd3 {[%clk 0:00:09]} 45. Rg6 {[%clk 0:00:11]}  Rd1+ {[%clk 0:00:02]} 46. Kh2 {[%clk 0:00:11]}  Rf1 {[%clk 0:00:02]} 47. Rxg4 {[%clk 0:00:09]}  Rxf2+ {[%clk 0:00:03]} 48. Kxh3 {[%clk 0:00:10]}  Kxb6 {[%clk 0:00:02]} 49. Rd4 {[%clk 0:00:08]}  Kxb5 {[%clk 0:00:03]} 50. d6 {[%clk 0:00:08]}  Rf8 {[%clk 0:00:03]} 51. Kg4 {[%clk 0:00:08]}  Rd8 {[%clk 0:00:04]} 52. Kf5 {[%clk 0:00:08]}  Kc5 {[%clk 0:00:04]} 53. Rd2 {[%clk 0:00:08]}  Rxd6 {[%clk 0:00:05]} 54. Rxd6 {[%clk 0:00:08]}  Kxd6 {[%clk 0:00:05]} 1/2-1/2


[Site "https://www.chess.com"]

[Event "Titled Tuesday Blitz November 01 Early 2022"]
[White "Kotepalli, Sai Nirupama"]
[Black "Mirzoev, Azer"]
[WhiteFideId "5039444"]
[BlackFideId "13400304"]
[WhiteElo "2400"]
[BlackElo "2525"]
[Result "0-1"]
[Round "02"]
[TimeControl "180+1"]
[Date "2022.11.02"]
[WhiteClock "0:00:05"]
[BlackClock "0:00:36"]

1. e4 {[%clk 0:03:00]}  c5 {[%clk 0:02:59]} 2. Nf3 {[%clk 0:02:59]}  e6 {[%clk 0:03:00]} 3. d3 {[%clk 0:02:57]}  d5 {[%clk 0:03:00]} 4. Nbd2 {[%clk 0:02:56]}  Nc6 {[%clk 0:03:00]} 5. g3 {[%clk 0:02:55]}  Nf6 {[%clk 0:03:01]} 6. Bg2 {[%clk 0:02:55]}  Be7 {[%clk 0:03:01]} 7. O-O {[%clk 0:02:55]}  b6 {[%clk 0:03:02]} 8. Qe2 {[%clk 0:02:53]}  Bb7 {[%clk 0:03:01]} 9. e5 {[%clk 0:02:51]}  Nd7 {[%clk 0:03:01]} 10. c3 {[%clk 0:02:50]}  Qc7 {[%clk 0:03:01]} 11. Re1 {[%clk 0:02:48]}  g5 {[%clk 0:02:58]} 12. h3 {[%clk 0:02:45]}  h5 {[%clk 0:02:58]} 13. g4 {[%clk 0:02:40]}  hxg4 {[%clk 0:02:58]} 14. hxg4 {[%clk 0:02:41]}  O-O-O {[%clk 0:02:57]} 15. Nf1 {[%clk 0:02:32]}  Rdg8 {[%clk 0:02:57]} 16. d4 {[%clk 0:02:22]}  Kb8 {[%clk 0:02:56]} 17. Ng3 {[%clk 0:02:15]}  a5 {[%clk 0:02:45]} 18. Be3 {[%clk 0:02:11]}  Ka7 {[%clk 0:02:42]} 19. Qd2 {[%clk 0:01:56]}  Qd8 {[%clk 0:02:37]} 20. Nh5 {[%clk 0:01:50]}  cxd4 {[%clk 0:02:29]} 21. Nxd4 {[%clk 0:01:44]}  Ndxe5 {[%clk 0:02:22]} 22. Nb5+ {[%clk 0:01:37]}  Ka8 {[%clk 0:02:22]} 23. Bd4 {[%clk 0:01:32]}  Nc4 {[%clk 0:02:08]} 24. Qc2 {[%clk 0:01:24]}  Nxd4 {[%clk 0:02:05]} 25. cxd4 {[%clk 0:01:22]}  Nd6 {[%clk 0:02:00]} 26. Nc3 {[%clk 0:01:15]}  Rh6 {[%clk 0:01:27]} 27. b4 {[%clk 0:01:04]}  axb4 {[%clk 0:01:26]} 28. Qa4+ {[%clk 0:01:03]}  Kb8 {[%clk 0:01:24]} 29. Qxb4 {[%clk 0:01:02]}  Nc4 {[%clk 0:01:12]} 30. Qb3 {[%clk 0:00:51]}  f5 {[%clk 0:01:11]} 31. Ng3 {[%clk 0:00:41]}  fxg4 {[%clk 0:01:06]} 32. Qd1 {[%clk 0:00:37]}  Rf8 {[%clk 0:01:05]} 33. Qxg4 {[%clk 0:00:36]}  Rf4 {[%clk 0:01:04]} 34. Qd1 {[%clk 0:00:35]}  Bb4 {[%clk 0:00:58]} 35. Rc1 {[%clk 0:00:32]}  Ba5 {[%clk 0:00:58]} 36. Re2 {[%clk 0:00:26]}  Qf6 {[%clk 0:00:55]} 37. Rec2 {[%clk 0:00:18]}  Rxd4 {[%clk 0:00:54]} 38. Qe2 {[%clk 0:00:15]}  Bxc3 {[%clk 0:00:45]} 39. Rxc3 {[%clk 0:00:14]}  Rd2 {[%clk 0:00:44]} 40. Qe1 {[%clk 0:00:12]}  Rxa2 {[%clk 0:00:43]} 41. Rxc4 {[%clk 0:00:09]}  dxc4 {[%clk 0:00:43]} 42. Bxb7 {[%clk 0:00:09]}  Kxb7 {[%clk 0:00:43]} 43. Qe4+ {[%clk 0:00:09]}  Ka7 {[%clk 0:00:43]} 44. Nh1 {[%clk 0:00:09]}  Qf4 {[%clk 0:00:38]} 45. Qb1 {[%clk 0:00:05]}  Qh2+ {[%clk 0:00:38]} 46. Kf1 {[%clk 0:00:05]}  Qxh1# {[%clk 0:00:36]} 0-1


[Site "https://www.chess.com"]